Cogmind - Beta 13 @@@ ROGUE MODE // 2024.04.04 @ 16:48:47 Player: Osku Result: Destroyed by S-10 Pest with Light Assault Rifle Performance ------------- Evolutions (1) 500 Regions Visited (2) 400 Robots Destroyed (30) 150 Value Destroyed (763) 763 Prototype IDs (0) 0 Alien Tech Used (0) 0 Bonus (0) 0 TOTAL SCORE: 1813 Bonus ------- None Cogmind --------- Core Integrity 0/400 Matter 205/300 Energy 86/100 System Corruption 0% Temperature Cool (4) Movement Core (350) Ox6 Location -9/Materials Parts ------- > --- POWER (1) -------- (None) > --- PROPULSION (2) --- (None) > --- UTILITY (2) ------ Large Storage Unit > --- WEAPON (4) ------- Small Laser > --- INVENTORY (15) --- Light Treads Peak State ------------ > --- POWER ------------ Light Nuclear Core > --- PROPULSION ------- Aluminum Leg Aluminum Leg > --- UTILITY ---------- Light Armor Plating Light Armor Plating > --- WEAPON ----------- Light Assault Rifle Grenade Launcher > --- INVENTORY -------- (None) [Rating: 9] Favorites ----------- Power Ion Engine Engine Ion Engine Power Core Light Nuclear Core Propulsion Aluminum Leg Treads Light Treads Leg Aluminum Leg Utility Light Armor Plating Device Heat Sink Storage Large Storage Unit Processor Signal Interpreter Protection Light Armor Plating Weapon Light Assault Rifle Energy Gun Medium Laser Ballistic Gun Light Assault Rifle Launcher Grenade Launcher Build | -11 -10 -9 ------- Run | Yrd Mat Mat Slots Evolved 2 | . . 2 Power . | . . . Propulsion . | . . . Utility . | . . . Weapon 2 | . . 2 Parts Attached 30 | 8 13 9 Power 4 | 2 1 1 Engine 3 | 2 . 1 Core 1 | . 1 . Reactor . | . . . Propulsion 6 | 3 3 . Treads 1 | . 1 . Leg 5 | 3 2 . Wheel . | . . . Hover . | . . . Flight . | . . . Utility 9 | 1 3 5 Device 1 | 1 . . Storage 5 | . . 5 Processor 1 | . 1 . Hackware . | . . . Protection 2 | . 2 . Artifact . | . . . Weapon 11 | 2 6 3 Energy Gun 5 | . 2 3 Energy Cannon . | . . . Ballistic Gun 4 | 2 2 . Ballistic Cannon . | . . . Launcher 2 | . 2 . Special Weapon . | . . . Impact Weapon . | . . . Slashing Weapon . | . . . Piercing Weapon . | . . . Special Melee Weapon . | . . . Unidentified Prototypes . | . . . Parts Lost 10 | . 3 7 Power 2 | . 1 1 Propulsion 3 | . 1 2 Utility 1 | . 1 . Weapon 4 | . . 4 Highest Loss Streak 7 | . 2 7 To Critical Strikes . | . . . Average Slot Usage (%) 74 | . 83 53 Engine 4 | . 6 . Core 3 | . 4 . Leg 22 | . 25 16 Device 2 | . 3 . Storage 3 | . . 11 Processor 1 | . 1 . Protection 9 | . 14 . Energy Gun 7 | . 2 18 Ballistic Gun 7 | . 11 . Launcher 9 | . 10 6 Naked Turns . | . . . Heaviest Build 27 | 8 15 27 Greatest Support 20 | 20 20 20 Greatest Overweight (x) 8 | . 2 8 Average Overweight (x) . | . . 1 Largest Inventory Capacity 15 | 5 5 15 Average Capacity 7 | 5 5 14 Most Carried 4 | 2 4 3 Average Carried . | . 1 1 Final Capacity 15 | 5 5 15 Final Carried 2 | . 2 1 Class Distribution -------------------- 82% | Mutant 17% | Gunner Dominant Class ---------------- Mutant | -10/Materials Gunner | -9/Materials Resources | -11 -10 -9 ----------- Run | Yrd Mat Mat Matter Collected 674 | 270 212 192 Remotely . | . . . Salvage Created 761 | 37 431 293 Parts 51 | 3 32 16 Haulers Intercepted 1 | . 1 . Recyclers Shooed 2 | . 2 . Parts Field Recycled . | . . . Retrieved Matter . | . . . Parts Self-Destructed . | . . . Prevented . | . . . Kills | -11 -10 -9 ------- Run | Yrd Mat Mat Combat Hostiles Destroyed 20 | 1 12 7 Guns 8 | 1 3 4 AOE 12 | . 9 3 Classes Destroyed 7 | 1 5 1 Worker 1 | . . 1 Builder 2 | . 1 1 Hauler 1 | . 1 . Recycler 2 | . 2 . Watcher 4 | . 3 1 Swarmer 3 | . 3 . Grunt 17 | 1 9 7 Best Kill Streak 7 | 1 7 5 Combat Bots Only 5 | 1 3 5 Max Kills in Single Turn 2 | 1 2 2 Gunslinging . | . . . Exploded 2 | . 2 2 Melee . | . . . Uniques/NPCs Destroyed . | . . . Combat | -11 -10 -9 -------- Run | Yrd Mat Mat Hostile Shots Fired 179 | 13 63 103 Missed 53 | 4 18 31 Damage Taken 1533 | 100 536 897 Core 487 | . 86 401 Absorbed by Shields . | . . . Core Remaining (%) 82 | 100 65 . Volleys Fired 80 | 10 50 20 Largest 3 | 2 2 3 Hottest 120 | 40 80 120 Shots Fired 125 | 20 69 36 Gun 100 | 20 50 30 Cannon . | . . . Launcher 25 | . 19 6 Special . | . . . Kinetic 69 | 20 49 . Thermal 21 | . 1 20 Explosive 25 | . 19 6 Electromagnetic 10 | . . 10 Robot Hit Streak 7 | 7 5 5 Robot Miss Streak 3 | 1 3 2 Penetration Max . | . . . Secondary Targets . | . . . Shots Hit Robots 72 | 13 38 21 Core Hits 65 | 4 42 19 Critical Kills . | . . . Critical Parts Destroyed 1 | . 1 . Critical Strikes 2 | . 1 1 Burn 1 | . . 1 Destroy 1 | . 1 . Melee Attacks . | . . . Impact . | . . . Slashing . | . . . Piercing . | . . . Sneak Attacks . | . . . Combat Hostiles . | . . . Follow-up Attacks . | . . . Damage Inflicted 2141 | 116 1467 558 Guns 577 | 116 236 225 Cannons . | . . . Explosions 1564 | . 1231 333 Melee . | . . . Ramming . | . . . Kinetic 352 | 116 236 . Thermal 153 | . . 153 Explosive 1564 | . 1231 333 Electromagnetic 72 | . . 72 Impact . | . . . Slashing . | . . . Piercing . | . . . Highest Corruption . | . . . Average Corruption . | . . . Corruption Purged . | . . . Corruption Blocked . | . . . Overload Shots . | . . . Overflow Damage 37 | . 28 9 Projectiles . | . . . Explosions 37 | . 28 9 Melee . | . . . Knockbacks . | . . . Impact . | . . . Kinetic . | . . . Secondary . | . . . Self-Inflicted Damage 171 | . 64 107 Shots 7 | . 2 5 Rammed . | . . . Targets Rammed . | . . . Kicked . | . . . Crushed . | . . . Highest Temperature 115 | 12 115 113 Average Temperature 38 | 8 42 36 Received Heat Transfer 672 | 54 189 429 Siege Activations . | . . . Robots Corrupted . | . . . Combat Hostiles . | . . . Parts Fried . | . . . Impact Corruptions . | . . . Robots Melted . | . . . Combat Hostiles . | . . . Parts Melted . | . . . Heat Transferred 459 | . . 459 Parts Sabotaged . | . . . Parts Stolen . | . . . Parts Stripped . | . . . Power Chain Reactions . | . . . Alert | -11 -10 -9 ------- Run | Yrd Mat Mat Peak Influence 412 | 20 412 322 Initial 120 | . 13 120 Average 182 | 3 204 208 Maximum Alert Level 2 | . 2 1 Low Security (%) 50 | 100 38 57 Level 1 48 | . 60 42 Level 2 . | . 1 . Level 3 . | . . . Level 4 . | . . . Level 5 . | . . . High Security . | . . . Max Security . | . . . Squads Dispatched 6 | . 3 3 Investigation 3 | . 1 2 Extermination . | . . . Reinforcement 3 | . 2 1 Assault . | . . . Garrison . | . . . Intercept . | . . . Searches Triggered . | . . . Construction Impeded 1 | . . 1 Haulers Reinforced . | . . . Active Scanning Responses . | . . . Cargo Convoy Interrupts . | . . . Stealth | -11 -10 -9 --------- Run | Yrd Mat Mat Distress Signals 1 | . 1 . Communications Jammed . | . . . Distress Signals . | . . . Times Spotted 35 | 1 19 15 Peak Tracking Total 5 | 1 4 5 Tactical Retreats . | . . . Traps | -11 -10 -9 ------- Run | Yrd Mat Mat Traps Triggered 2 | . 2 . Indirectly . | . . . Trap Hack Attempts . | . . . Triggered . | . . . Disarmed . | . . . Reprogrammed . | . . . Reused . | . . . Traps Extracted . | . . . Installed . | . . . Triggered . | . . . Machines | -11 -10 -9 ---------- Run | Yrd Mat Mat Machines Disabled 4 | . 3 1 Max in Single Turn 1 | . 1 1 Machines Repaired . | . . . Machines Dismantled . | . . . Machines Sabotaged . | . . . Overloaded Fab Kills . | . . . Hacking | -11 -10 -9 --------- Run | Yrd Mat Mat Machines Accessed 4 | . 2 2 Terminals 2 | . . 2 Fabricators . | . . . Repair Stations 1 | . 1 . Recycling Units 1 | . 1 . Scanalyzers . | . . . Garrison Access . | . . . Total Hacks 16 | . 7 9 Successful 8 | . 2 6 Failed 8 | . 5 3 Catastrophic . | . . . Database Lockouts . | . . . Manual . | . . . Terminals 9 | . . 9 Fabricators . | . . . Repair Stations 4 | . 4 . Recycling Units 3 | . 3 . Scanalyzers . | . . . Garrison Access . | . . . Terminal Hacks 6 | . . 6 Record 3 | . . 3 Level Access Points 1 | . . 1 Emergency Access Points 1 | . . 1 Locate Traps 1 | . . 1 Fabricator Hacks . | . . . Repair Station Hacks 1 | . 1 . Scan Component 1 | . 1 . Recycling Unit Hacks 1 | . 1 . Process 1 | . 1 . Scanalyzer . | . . . Garrison Access Hacks . | . . . Unauthorized Hacks . | . . . Terminals . | . . . Fabricators . | . . . Repair Stations . | . . . Recycling Units . | . . . Scanalyzers . | . . . Garrison Access . | . . . Data Cores Recovered . | . . . Used . | . . . Hacking Detections 4 | . 2 2 Full Trace Events 4 | . 2 2 Feedback Events . | . . . Feedback Blocked . | . . . Robot Schematics Acquired . | . . . Robots Built . | . . . Authchips . | . . . Time . | . . . Total Robot Build Rating . | . . . Part Schematics Acquired . | . . . Parts Built . | . . . Authchips . | . . . Time . | . . . Total Part Build Rating . | . . . Parts Repaired . | . . . Time . | . . . Parts Recycled . | . . . Recycled Matter 501 | . 501 . Retrieved Matter . | . . . Retrieved Components . | . . . Parts Scanalyzed . | . . . Part Schematics Acquired . | . . . Parts Damaged . | . . . Bothacking | -11 -10 -9 ------------ Run | Yrd Mat Mat Used RIF Installer . | . . . Robots Hacked . | . . . Non-combat . | . . . Combat . | . . . Robot Hacks Applied . | . . . Relay Couplers Released . | . . . Fabnet Peak Effective % . | . . . Robots Rewired . | . . . Allies Hacked . | . . . Hacks Repelled . | . . . Allies | -11 -10 -9 -------- Run | Yrd Mat Mat Total Allies . | . . . Largest Group . | . . . Highest-Rated Group . | . . . Highest-Rated Ally . | . . . Total Orders . | . . . Ally Attacks . | . . . Total Damage . | . . . Kills . | . . . Allies Corrupted . | . . . Allies Melted . | . . . Intel | -11 -10 -9 ------- Run | Yrd Mat Mat Robot Analysis Total . | . . . Derelict Logs Recovered . | . . . Drone Launches . | . . . Drone Recoveries . | . . . Exploration | -11 -10 -9 ------------- Run | Yrd Mat Mat Turns Passed 943 | 110 576 257 Spaces Moved 521 | 74 357 90 Core 44 | 30 6 8 Treads 23 | . 23 . Legs 454 | 44 328 82 Wheels . | . . . Hover . | . . . Flight . | . . . Fastest Speed 50 | 50 120 120 Average Speed 132 | 91 123 206 Slowest Speed 450 | 120 160 450 Overloaded Moves . | . . . Propulsion Burnouts . | . . . Robots Hopped . | . . . Cave-ins Triggered . | . . . Exploration Rate (%) 23 | 5 56 10 Regions Visited 2 Branch Regions . Pre-discovered Areas . | . . . Known Exits Taken 1 | . 1 . Unknown Exits Taken 1 | 1 . . Scrap Searched . | . . . Spaces Dug . | . . . Terrain Destroyed 128 | . 97 31 Melee . | . . . Projectile . | . . . AOE 128 | . 97 31 Terrain Rammed . | . . . Walls Destroyed . | . . . Machines Disabled . | . . . Actions | -11 -10 -9 --------- Run | Yrd Mat Mat Total 674 | 101 439 134 Wait 2 | . . 2 Move 519 | 73 356 90 Hop . | . . . Pick Up 25 | 8 11 6 Fast Attach . | . . . Attach 30 | 8 13 9 Detach 7 | . 4 3 Swap . | . . . Drop 11 | 2 5 4 Fire 80 | 10 50 20 Melee . | . . . Ram . | . . . Kick . | . . . Crush . | . . . Escape Stasis . | . . . Rewire . | . . . Trap . | . . . Miscellaneous . | . . . Route ------- -11/Scrapyard -10/Materials (discovered 3 exits: *Mat / [*Min x2]) -9/Materials (discovered 3 exits: Mat x3) History --------- Turn | Location | Event 2 | -11/Scrapyard | Met Revision 17 63 | -11/Scrapyard | Discovered new exit (range 8) 111 | -11/Scrapyard | Entered Materials 160 | -10/Materials | Discovered new exit (range 12) 255 | -10/Materials | Discovered new exit (range 15) 318 | -10/Materials | Build established: Mutant 570 | -10/Materials | Discovered new exit (range 16) 686 | -10/Materials | Identified exit to Materials 687 | -10/Materials | Entered another Materials area 687 | -9/Materials | Evolved 2 slots: Weapon x2 819 | -9/Materials | Identified exit to Materials 902 | -9/Materials | Core integrity fell below 50% 920 | -9/Materials | Core integrity fell below 20% 944 | -9/Materials | Destroyed by S-10 Pest with Light Assault Rifle Last Messages --------------- Acquired Sml. Laser. U-05 Engineer lays Concrete. G-34 Mercenary destroyed. U-05 Engineer lays Concrete. G-34 Mercenary destroyed. U-05 Engineer builds a Wall. U-05 Engineer lays Concrete. U-05 Engineer builds a Wall. Sml. Laser destroyed. U-05 Engineer builds a Wall. Acquired 32 matter. U-05 Engineer builds a Door. U-05 Engineer lays Concrete. U-05 Engineer builds a Wall. Acquired Sml. Laser. U-05 Engineer lays Concrete. U-05 Engineer builds a Wall. K-01 Serf collects debris. C-30 ARC bursts open, deploying its payload. S-10 Pest unfolds itself. Map ----- +----------------------------------------------------+ | ?????????????????????????????????????????????????? | | ?????????????????????????????????????????????????? | | ?????????????????????????????????????????????????? | | ?????????????????????????????????????????????????? | | ?????????????????????????????????????????????????? | | ?????????????????????????????????????????????????? | | ??